Cogmind - Beta 12 @@@ ROGUE MODE // 2023.09.16 @ 21:24:24 Player: SdataG Result: Destroyed by G-47 Trooper with Particle Gun Performance ------------- Evolutions (2) 1000 Regions Visited (4) 800 Robots Destroyed (41) 205 Value Destroyed (1056) 1056 Prototype IDs (1) 20 Alien Tech Used (0) 0 Bonus (10) 10 TOTAL SCORE: 3091 Bonus ------- High Alert Combat Kills 10 Cogmind --------- Core Integrity 0/550 Matter 176/300 Energy 100/100 System Corruption 0% Temperature Cool (9) Movement Core (350) Ox6 Location -8/Materials Parts ------- > --- POWER (1) -------- (None) > --- PROPULSION (3) --- (None) > --- UTILITY (4) ------ Large Storage Unit Improved Terrain Scan Processor > --- WEAPON (3) ------- (None) > --- INVENTORY (15) --- Small Storage Unit Visual Processing Unit ECM Suite Hardlight Generator Peak State ------------ > --- POWER ------------ Light Nuclear Core > --- PROPULSION ------- Carbon-fiber Leg Wheel Improved Hover Unit > --- UTILITY ---------- Large Storage Unit Structural Scanner Improved Terrain Scan Processor System Shield > --- WEAPON ----------- Shotgun Enhanced Autogun Mini Grenade Launcher > --- INVENTORY -------- Small Storage Unit Visual Processing Unit ECM Suite Hardlight Generator Long-range Tractor Beam [Rating: 26] Favorites ----------- Power Light Ion Engine Engine Light Ion Engine Power Core Light Nuclear Core Propulsion Aluminum Leg Treads Light Treads Leg Aluminum Leg Wheel Wheel Hover Unit Improved Hover Unit Flight Unit Flight Unit Utility System Shield Device ECM Suite Storage Large Storage Unit Processor Visual Processing Unit Hackware System Shield Protection Medium Armor Plating Weapon Light Assault Rifle Energy Gun Heavy EM Pulse Gun Energy Cannon Beam Cannon Ballistic Gun Light Assault Rifle Launcher Mini Grenade Launcher Special Weapon Plasma Cutter Build | -11 -10 -10 -9 -8 ------- Run | Jun Mat Min Mat Mat Slots Evolved 4 | . . . 2 2 Power . | . . . . . Propulsion 1 | . . . . 1 Utility 2 | . . . 2 . Weapon 1 | . . . . 1 Parts Attached 41 | 5 4 . 18 14 Power 2 | 1 . . . 1 Engine 1 | 1 . . . . Core 1 | . . . . 1 Reactor . | . . . . . Propulsion 12 | 2 . . 4 6 Treads 1 | . . . 1 . Leg 5 | 2 . . 2 1 Wheel 3 | . . . 1 2 Hover 2 | . . . . 2 Flight 1 | . . . . 1 Utility 11 | . 2 . 4 5 Device 4 | . . . 1 3 Storage 1 | . . . . 1 Processor 2 | . . . 1 1 Hackware 2 | . . . 2 . Protection 2 | . 2 . . . Artifact . | . . . . . Weapon 16 | 2 2 . 10 2 Energy Gun 1 | . . . 1 . Energy Cannon 1 | . . . 1 . Ballistic Gun 8 | 2 . . 5 1 Ballistic Cannon . | . . . . . Launcher 5 | . 2 . 2 1 Special Weapon 1 | . . . 1 . Impact Weapon . | . . . . . Slashing Weapon . | . . . . . Piercing Weapon . | . . . . . Special Melee Weapon . | . . . . . Unidentified Prototypes 1 | . . . . 1 Corrupted Parts 2 | . . . 2 . System Corruption 8 | . . . 8 . Parts Lost 17 | . . . 3 14 Power 2 | . . . 1 1 Propulsion 6 | . . . . 6 Utility 3 | . . . . 3 Weapon 6 | . . . 2 4 Highest Loss Streak 7 | . . . 1 7 To Critical Strikes . | . . . . . Average Slot Usage (%) 86 | . 81 100 92 69 Engine 4 | . 14 14 5 . Treads 5 | . . . 8 . Leg 11 | . 28 28 12 2 Wheel 1 | . . . . 5 Hover 1 | . . . . 4 Device 9 | . . . 11 11 Storage 1 | . . . . 6 Processor 9 | . . . 11 8 Hackware 15 | . . . 21 9 Protection 2 | . 9 28 . . Energy Cannon 2 | . . . 3 . Ballistic Gun 13 | . 10 . 15 11 Launcher 5 | . 17 28 1 6 Naked Turns . | . . . . . Heaviest Build 33 | 5 24 24 26 33 Greatest Support 20 | 20 20 20 20 15 Greatest Overweight (x) 9 | . 1 1 2 9 Average Overweight (x) . | . . 1 . 1 Largest Inventory Capacity 15 | 5 5 5 5 15 Average Capacity 6 | 5 5 5 5 11 Most Carried 6 | 3 5 5 5 6 Average Carried 3 | 1 2 5 4 3 Final Capacity 15 | 5 5 5 5 15 Final Carried 5 | 1 5 5 5 4 Class Distribution -------------------- 60% | Hacker-Mutant 28% | Mutant 10% | Skirmisher Dominant Class ---------------- Mutant | -10/Materials Mutant | -10/Mines Hacker-Mutant | -9/Materials Mutant | -8/Materials Resources | -11 -10 -10 -9 -8 ----------- Run | Jun Mat Min Mat Mat Matter Collected 1062 | 262 23 . 454 323 Remotely 205 | . . . . 205 Salvage Created 1181 | 38 23 42 528 550 Parts 82 | 2 4 7 31 38 Haulers Intercepted . | . . . . . Recyclers Shooed 2 | . . . . 2 Parts Field Recycled . | . . . . . Retrieved Matter . | . . . . . Parts Self-Destructed . | . . . . . Prevented . | . . . . . Kills | -11 -10 -10 -9 -8 ------- Run | Jun Mat Min Mat Mat Combat Hostiles Destroyed 30 | 1 . 3 11 15 Guns 10 | 1 . . 7 2 Cannons 3 | . . . 3 . AOE 17 | . . 3 1 13 Classes Destroyed 8 | 1 1 1 2 3 Worker 2 | . . . . 2 Builder 2 | . . . . 2 Recycler 3 | . . . . 3 Watcher 4 | . 1 . 2 1 Swarmer 10 | . . 3 . 7 Grunt 15 | 1 . . 6 8 Brawler 1 | . . . 1 . Sentry 4 | . . . 4 . Best Kill Streak 5 | 1 1 3 3 5 Combat Bots Only 4 | 1 . 3 3 4 Max Kills in Single Turn 2 | 1 1 2 1 2 Gunslinging . | . . . . . Exploded 2 | . . 2 1 2 Melee . | . . . . . Uniques/NPCs Destroyed . | . . . . . Combat | -11 -10 -10 -9 -8 -------- Run | Jun Mat Min Mat Mat Damage Taken 2228 | 56 19 98 626 1429 Core 742 | 11 . . 177 554 Absorbed by Shields . | . . . . . Core Remaining (%) 81 | 95 . 95 55 . Volleys Fired 130 | 6 10 2 73 39 Largest 3 | 2 2 2 2 3 Hottest 83 | 40 50 63 83 78 Shots Fired 187 | 12 11 4 86 74 Gun 136 | 12 9 . 63 52 Cannon 17 | . . . 17 . Launcher 34 | . 2 4 6 22 Special . | . . . . . Kinetic 127 | 12 9 . 54 52 Thermal 17 | . . . 17 . Explosive 29 | . 1 2 4 22 Electromagnetic 14 | . 1 2 11 . Robot Hit Streak 19 | 4 1 1 19 11 Robot Miss Streak 12 | 2 2 1 5 12 Penetration Max . | . . . . . Secondary Targets . | . . . . . Shots Hit Robots 96 | 8 3 2 45 38 Core Hits 73 | 2 1 3 24 43 Critical Kills . | . . . . . Critical Parts Destroyed . | . . . . . Critical Strikes 1 | . . . 1 . Corrupt 1 | . . . 1 . Melee Attacks . | . . . . . Impact . | . . . . . Slashing . | . . . . . Piercing . | . . . . . Sneak Attacks . | . . . . . Combat Hostiles . | . . . . . Follow-up Attacks . | . . . . . Damage Inflicted 2600 | 73 102 95 712 1618 Guns 780 | 73 25 . 352 330 Cannons 174 | . . . 174 . Explosions 1641 | . 77 95 181 1288 Melee . | . . . . . Ramming 5 | . . . 5 . Kinetic 673 | 73 25 . 245 330 Thermal 200 | . . 26 174 . Explosive 1480 | . 34 . 158 1288 Electromagnetic 242 | . 43 69 130 . Impact . | . . . . . Slashing . | . . . . . Piercing . | . . . . . Highest Corruption 8 | . . . 8 . Average Corruption 7 | . . . 7 . Corruption Purged . | . . . . . Corruption Blocked . | . . . . . Effects 36 | . . . 36 . Message Errors 8 | . . . 8 . Matter Fused 13 | . . . 13 . Heat Flow Errors 4 | . . . 4 . Energy Discharges 1 | . . . 1 . Data Loss (minor) 6 | . . . 6 . Misfires 1 | . . . 1 . Weapon Failures 3 | . . . 3 . Overload Shots . | . . . . . Overflow Damage 99 | . 4 . 23 72 Projectiles 9 | . . . 9 . Explosions 90 | . 4 . 14 72 Melee . | . . . . . Knockbacks . | . . . . . Impact . | . . . . . Kinetic . | . . . . . Secondary . | . . . . . Self-Inflicted Damage 336 | . 19 70 48 199 Shots 14 | . 1 4 2 7 Rammed . | . . . . . Targets Rammed 2 | . . . 2 . Kicked 2 | . . . 2 . Crushed . | . . . . . Highest Temperature 372 | 12 10 40 372 48 Average Temperature 89 | 9 5 19 122 14 Received Heat Transfer 789 | 30 . . 255 504 Effects 3 | . . . 3 . Shutdowns 1 | . . . 1 . Interference 2 | . . . 2 . Siege Activations . | . . . . . Robots Corrupted . | . . . . . Combat Hostiles . | . . . . . Parts Fried 2 | . . . 2 . Impact Corruptions . | . . . . . Robots Melted . | . . . . . Combat Hostiles . | . . . . . Parts Melted . | . . . . . Heat Transferred 420 | . . 50 370 . Parts Sabotaged . | . . . . . Parts Stolen . | . . . . . Parts Stripped . | . . . . . Power Chain Reactions 1 | . . 1 . . Missiles Intercepted . | . . . . . Alert | -11 -10 -10 -9 -8 ------- Run | Jun Mat Min Mat Mat Peak Influence 517 | 20 84 135 340 517 Initial 52 | . 13 32 52 . Average 163 | 3 43 132 170 222 Maximum Alert Level 2 | . . . 1 2 Low Security (%) 61 | 100 100 100 61 37 Level 1 33 | . . . 38 42 Level 2 4 | . . . . 20 Level 3 . | . . . . . Level 4 . | . . . . . Level 5 . | . . . . . High Security . | . . . . . Max Security . | . . . . . Squads Dispatched 9 | . . . 5 4 Investigation 3 | . . . 2 1 Extermination . | . . . . . Reinforcement 5 | . . . 3 2 Assault 1 | . . . . 1 Garrison . | . . . . . Intercept . | . . . . . Searches Triggered . | . . . . . Construction Impeded 3 | . . . 1 2 Haulers Reinforced . | . . . . . Active Scanning Responses . | . . . . . Cargo Convoy Interrupts . | . . . . . Stealth | -11 -10 -10 -9 -8 --------- Run | Jun Mat Min Mat Mat Distress Signals 3 | . . . 1 2 Communications Jammed . | . . . . . Distress Signals . | . . . . . Times Spotted 56 | 1 4 2 24 25 Peak Tracking Total 8 | 1 3 . 4 8 Tactical Retreats 4 | . . . 3 1 Traps | -11 -10 -10 -9 -8 ------- Run | Jun Mat Min Mat Mat Traps Triggered 1 | . . . . 1 Indirectly . | . . . . . Trap Hack Attempts . | . . . . . Triggered . | . . . . . Disarmed . | . . . . . Reprogrammed . | . . . . . Reused . | . . . . . Traps Extracted . | . . . . . Installed . | . . . . . Triggered . | . . . . . Machines | -11 -10 -10 -9 -8 ---------- Run | Jun Mat Min Mat Mat Machines Disabled 2 | . . . 1 1 Max in Single Turn 1 | . . . 1 1 Garrison Access 1 | . . . . 1 Machines Repaired . | . . . . . Machines Sabotaged . | . . . . . Overloaded Fab Kills . | . . . . . Hacking | -11 -10 -10 -9 -8 --------- Run | Jun Mat Min Mat Mat Machines Accessed 4 | . . . 2 2 Terminals 2 | . . . 1 1 Fabricators . | . . . . . Repair Stations . | . . . . . Recycling Units 2 | . . . 1 1 Scanalyzers . | . . . . . Garrison Access . | . . . . . Total Hacks 12 | . . . 8 4 Successful 3 | . . . 3 . Failed 9 | . . . 5 4 Catastrophic 1 | . . . 1 . Database Lockouts . | . . . . . Manual 1 | . . . . 1 Terminals 6 | . . . 3 3 Fabricators . | . . . . . Repair Stations . | . . . . . Recycling Units 6 | . . . 5 1 Scanalyzers . | . . . . . Garrison Access . | . . . . . Terminal Hacks . | . . . . . Fabricator Hacks . | . . . . . Repair Station Hacks . | . . . . . Recycling Unit Hacks 3 | . . . 3 . Recycle Component 2 | . . . 2 . Process 1 | . . . 1 . Scanalyzer . | . . . . . Garrison Access Hacks . | . . . . . Unauthorized Hacks . | . . . . . Terminals . | . . . . . Fabricators . | . . . . . Repair Stations . | . . . . . Recycling Units . | . . . . . Scanalyzers . | . . . . . Garrison Access . | . . . . . Data Cores Recovered . | . . . . . Used . | . . . . . Hacking Detections 3 | . . . 2 1 Full Trace Events 3 | . . . 2 1 Feedback Events . | . . . . . Feedback Blocked . | . . . . . Robot Schematics Acquired . | . . . . . Robots Built . | . . . . . Authchips . | . . . . . Time . | . . . . . Total Robot Build Rating . | . . . . . Part Schematics Acquired . | . . . . . Parts Built . | . . . . . Authchips . | . . . . . Time . | . . . . . Total Part Build Rating . | . . . . . Parts Repaired . | . . . . . Time . | . . . . . Parts Recycled 2 | . . . 2 . Recycled Matter 212 | . . . 212 . Retrieved Matter . | . . . . . Retrieved Components . | . . . . . Parts Scanalyzed . | . . . . . Part Schematics Acquired . | . . . . . Parts Damaged . | . . . . . Bothacking | -11 -10 -10 -9 -8 ------------ Run | Jun Mat Min Mat Mat Used RIF Installer . | . . . . . Robots Hacked . | . . . . . Non-combat . | . . . . . Combat . | . . . . . Robot Hacks Applied . | . . . . . Relay Couplers Released 1 | . . . . 1 Machine Destruction 1 | . . . . 1 Fabnet Peak Effective % . | . . . . . Robots Rewired . | . . . . . Allies Hacked . | . . . . . Hacks Repelled . | . . . . . Allies | -11 -10 -10 -9 -8 -------- Run | Jun Mat Min Mat Mat Total Allies . | . . . . . Largest Group . | . . . . . Highest-Rated Group . | . . . . . Highest-Rated Ally . | . . . . . Total Orders . | . . . . . Ally Attacks . | . . . . . Total Damage . | . . . . . Kills . | . . . . . Allies Corrupted . | . . . . . Allies Melted . | . . . . . Intel | -11 -10 -10 -9 -8 ------- Run | Jun Mat Min Mat Mat Robot Analysis Total . | . . . . . Derelict Logs Recovered . | . . . . . Drone Launches . | . . . . . Drone Recoveries . | . . . . . Exploration | -11 -10 -10 -9 -8 ------------- Run | Jun Mat Min Mat Mat Turns Passed 2080 | 109 133 98 1251 489 Spaces Moved 720 | 85 75 49 317 194 Core 57 | 27 . . 5 25 Treads 23 | . . . 23 . Legs 510 | 58 75 49 289 39 Wheels 4 | . . . . 4 Hover 115 | . . . . 115 Flight 11 | . . . . 11 Fastest Speed 50 | 50 120 190 120 65 Average Speed 155 | 97 138 190 148 190 Slowest Speed 500 | 120 190 190 190 500 Overloaded Moves . | . . . . . Propulsion Burnouts . | . . . . . Robots Hopped . | . . . . . Cave-ins Triggered . | . . . . . Exploration Rate (%) 18 | 7 13 20 28 22 Regions Visited 4 Branch Regions 1 Pre-discovered Areas . | . . . . . Known Exits Taken . | . . . . . Unknown Exits Taken 4 | 1 1 1 1 . Scrap Searched . | . . . . . Spaces Dug 16 | . . . . 16 Terrain Destroyed 240 | . 4 18 30 188 Melee . | . . . . . Projectile . | . . . . . AOE 240 | . 4 18 30 188 Terrain Rammed . | . . . . . Walls Destroyed . | . . . . . Machines Disabled . | . . . . . Actions | -11 -10 -10 -9 -8 --------- Run | Jun Mat Min Mat Mat Total 1527 | 101 96 50 1017 263 Wait 587 | . . . 587 . Move 716 | 84 74 48 316 194 Hop . | . . . . . Pick Up 32 | 6 6 . 12 8 Fast Attach 4 | . . . . 4 Attach 30 | 5 4 . 11 10 Detach 9 | . 2 . 2 5 Swap 7 | . . . 7 . Drop 10 | . . . 7 3 Fire 130 | 6 10 2 73 39 Melee . | . . . . . Ram . | . . . . . Kick 2 | . . . 2 . Crush . | . . . . . Escape Stasis . | . . . . . Rewire . | . . . . . Trap . | . . . . . Miscellaneous . | . . . . . Route ------- -11/Junkyard -10/Materials -10/Mines -9/Materials -8/Materials (discovered 1 exit: [*Fac]) History --------- Turn | Location | Event 2 | -11/Junkyard | Met Revision 17 72 | -11/Junkyard | Discovered new exit (range 8) 110 | -11/Junkyard | Entered Materials 212 | -10/Materials | Discovered new exit (range 12) 243 | -10/Materials | Entered Mines 284 | -10/Mines | Found a hidden stash of uninstalled traps 318 | -10/Mines | Build established: Mutant 331 | -10/Mines | Discovered new exit (range 6) 341 | -10/Mines | Entered Materials 341 | -9/Materials | Evolved 2 slots: Utility x2 679 | -9/Materials | Build established: Hacker-Mutant 776 | -9/Materials | Discovered new exit (range 9) 1592 | -9/Materials | Entered another Materials area 1592 | -8/Materials | Evolved 2 slots: Propulsion x1, Weapon x1 1999 | -8/Materials | Core integrity fell below 50% 2022 | -8/Materials | Discovered new exit (range 13) 2042 | -8/Materials | Lost 7 parts (1p2n1u3w) 2065 | -8/Materials | Core integrity fell below 20% 2081 | -8/Materials | Destroyed by G-47 Trooper with Particle Gun Last Messages --------------- 02040_ Garrison Access disabled. 02040_ Relay Coupler [Swarmer] tumbles out of Garrison Access. 02040_ A bubble of electromagnetic force engulfs the area. 02054_ U-05 Engineer lays Concrete. 02060_ Critical hit (Burn: +37). 02064_ U-05 Engineer builds a Wall. 02064_ Critical hit (Burn: +37). 02069_ U-05 Engineer builds a Wall. 02075_ Connecting with Terminal... 02075_ ALERT: Suspicious activity at Terminal M012. Dispatching Investigation squad. 02075_ System Shield destroyed. 02075_ Lrn. Tractor Beam destroyed. 02077_ Flight Unit destroyed. 02077_ Critical hit (Burn: +37). 02080_ U-05 Engineer lays Concrete. [Achievement: First Step to Greatness] The achievement interface (ESC then open Records) offers an effective way to explore all of your earned achievements as well as seek out new goals for future runs. Map ----- +----------------------------------------------------+ | ?????## """ / ####???????????????????????????? | | ?????## # ###????????????????????????????? | | ?????## # ##?????????????????????????????? | | ?????## # ##?????????????????????????????? | | ?????## # ##?????????????????????????????? | | ?????## # ##?????????????????????????????? | | ?????########## ! ##?????????????????????????????? | | ?????########## [###????????????????????????????? | | ????????????### #####??????????????????????????? | | ????????????## ## ??????????????????????????? | | ????????????### ### """???????????????????????? | | ??????????##### # """ ??????????????????????? | | ??????????### # #! """? #???????????????????? | | ?????????###! ### #???????????????????? | | ?????????##! # # """ ????????????????????? | | ?????????##! # # """ ??????????????????????? | | ?????????##! u# """???????????????????????? | | ?????????##! u# # ????????????????????? | | ?????????###! ##/#######???????????????????? | | ?????????##### !#????????????????????? | | ??????????#### k #????????????????????? | | ????????????## ^ ###??????????????????? | | ????????????##### ## G"Y! ""#??????????????????? | | ????????????######## "!" T"#??????????????????? | | ???????????????? ### Y ""#??????????????????? | | ???????????????????#! @= ###??????????????????? | | ????????????? = #????????????????????? | | ???????????# ########ggg#????????????????????? | | ???????????? ?????????# #????????????????????? | | ????????????????????????#####????????????????????? | | ?????????????????????????????????????????????????? | | ?????????????????????????????????????????????????? | | ?????????????????????????????????????????????????? | | ?????????????????????????????????????????????????? | | | | | | | | | | | | | | | | | | | | | | | | | | | | | | | | | +----------------------------------------------------+ Best States ------------- Heat Dissipation 31 Energy Generation 14 Energy Capacity 160 Matter Stores 300 Matter Capacity 300 Sight Range 18 Terrain Scan Density 110 ECM Strength 1 Armor Coverage 450 Evasion (%) 55 Recoil Reduction 1 Defensive Hacking 20 Item Schematics ----------------- None Robot Schematics ------------------ None Fabricated ------------ Nothing Alien Tech Used ----------------- None Achievements -------------- Crack Shot First Step to Greatness Let's See Who's Tougher One Hack Too Far Remodeling Risk Taker Storm Trooper Universal Adapter Use The Force Challenges ------------ None Game ------ Seed SingularityBeamTrap Manual? 0 Play Time 00:33:46 Cumulative 1.0 hours Start 2023.09.16 @ 20:52:26 End 2023.09.16 @ 21:24:24 Sessions 1 Manual Loads 0 Difficulty Rogue Special Mode None Game No. 1 Rogue 1 Adventurer 0 Explorer 0 Win Type - Total 0 Types 0/0/0/0/0/0/0/0/0 Lore% 0 Gallery% 3 Achievement% 3 Wizard Run 0 Options --------- ASCII 0 Keyboard 0 Movement Mouse Keybinds 0 Fullscreen 1 Font 18/CogWide Map View 76x50 Tactical HUD 1 Map Filters NONE Filters NONE Steam 1 RUN: cba64116-136f-4a50-add1-89f30c8554a4